Workbook

Sheet INTRO
B13: The Metropolis Hastings algorithm: an illustrative example
B16: Aims
B17: This spreadsheet is intended as an example to demonstrate how the Metropolis Hastings algorithm can be implemented within Excel to undertake Bayesian inference.
B18: If you are considering programming the Metropolis Hastings algorithm in another language/modelling package this example may be useful for you.
B19: This example uses a very simple state transition model (with 3 states) and uses data observations of persons in State B and persons moving to Stage C.
B20: This structure and approach can be extended to a larger more complex model and with more parameters and datasets.
B21: This spreadsheet may be a useful illustration of the process of the MH algorithm for those considering programming this algorithm in another package.
B22: Warning! This example is intended as a rough guide to the process only. For further details consult a statistics reference.
B24: Referencing
B25: The author has used a similar approach to calibrate a natural history model for colorectal cancer. The methods are published here:
B26: Whyte S, Walsh C, Chilcott J. Bayesian Calibration of a Natural History Model with Application to a Population Model for Colorectal Cancer. Medical Decision Making 2011;31:625-641.
B27: http://www.ncbi.nlm.nih.gov/pubmed/21127321
B29: Please reference this webpage and the paper if they have been useful to you!
B30: Please contact me with any feedback/suggestions: Sophie Whyte, Research Fellow, School of Health and Related Research (ScHARR), University of Sheffield, sophie.whyte@shef.ac.uk
B31: Version 2, Feb 2012
B33: Instructions for use
B34: (1) Generate estimates for the variances:
C35: Run the first macro to fit the model to one dataset at a time.
C36: A smaller number of runs will be sufficient for estimating variances.
C37: Adjust epsilon values and the proportion of parameters varied on each run to obtain a good jump rate.
C38: Adjust Max number of runs so that a good fit is obtained to each dataset.
C39: Check the resulting fit to each dataset.
B40: (2) Run the MH algorithm:
C41: Run the macro for the MH algorithm fitting to all datasets at once.
C42: The show progress graph feature can be used to check algorithm is working correctly.
C43: Examine the resulting plot of SSE for signs of convergence.
B44: (3) Repeat for several different initial sets:
C45: Run the algorithm using a range of initial sets to form different chains.
C46: Different chains should all converge to the same region.
B47: (4) A sample of parameter sets from after convergence can be used to represent parameter uncertainty (these could be taken from more than one chain).
B49: Notes:
B50: If the number of parameters is high and the acceptance rate is low then it may help to just vary a proportion of the parameters on each run.
B51: Epsilon values for each parameter can be estimated by considering the relative variances of parameter sets from a set of runs.
B52: In this example parameter values are sampled from non-informative uniform priors (Beta(1,1)). However, if data is available on the values of model parameters this can be changed.
B53: The algorithm can be **animated** so you can see how close the model predictions are to the observed data for each run by using the 'show progress graph' option.
B54: Proposal sets are sampled from a uniform distribution around the current parameter value.
B56: Sheet contents
B57: Sheet 1: MH algorithm | D57: Contains macros for running MH, cells for adjusting how MH runs, and results from running MH algorithm included plots of parameter values and total SSE.
B58: Sheet 2: Data, model predictions, SSE | D58: Contains the observed data, the model predictions, SSE calculations, plots of model predictions versus observed data, and the results of the variances macro.
B59: Sheet 3: Model | D59: Contains model parameters and formulae to calculate model predictions.

Sheet MH algorithm
B2: Metropolis hastings algorithm implemented within Excel - an illustrative example
B5: On this sheet cells in which the user should enter values are coloured white. | R5: Summary statistics and plots
R6: Parameter values across all runs
W7: =L29 -> SSE | Y7: =N29 -> SSE/variance | AA7: =P29 -> Total SSE
B8: User defined inputs | G8: Initial parameter values and generation of proposal set | S8: =H10 -> Parameter 1 | T8: =I10 -> Parameter 2 | U8: =J10 -> Parameter 3 | V8: =K10 -> Parameter 4 | W8: =L30 -> Data set 1 | X8: =M30 -> Data set 2 | Y8: =N30 -> Data set 1 | Z8: =O30 -> Data set 2
B9: Use initial set number | C9: 1 | H9: 1 | I9: 2 | J9: 3 | K9: 4 | R9: Best fitting parameter set | S9: =VLOOKUP(1,$Q$20:$AA$5020,S17) -> 0.0001608712191 | T9: =VLOOKUP(1,$Q$20:$AA$5020,T17) -> 1e-08 | U9: =VLOOKUP(1,$Q$20:$AA$5020,U17) -> 0.006606548508 | V9: =VLOOKUP(1,$Q$20:$AA$5020,V17) -> 0.04567562009 | W9: =VLOOKUP(1,$Q$20:$AA$5020,W17) -> 118742.138 | X9: =VLOOKUP(1,$Q$20:$AA$5020,X17) -> 2901507.572 | Y9: =VLOOKUP(1,$Q$20:$AA$5020,Y17) -> 3.815707692 | Z9: =VLOOKUP(1,$Q$20:$AA$5020,Z17) -> 20.23659152 | AA9: =VLOOKUP(1,$Q$20:$AA$5020,AA17) -> 24.05229921
B10: Max number of runs | C10: 5000 | H10: ="Parameter " & H9 -> Parameter 1 | I10: ="Parameter " & I9 -> Parameter 2 | J10: ="Parameter " & J9 -> Parameter 3 | K10: ="Parameter " & K9 -> Parameter 4 | R10: lower bound | S10: =MIN(S$20:S5020) -> 1e-08 | T10: =MIN(T$20:T5020) -> 1e-08 | U10: =MIN(U$20:U5020) -> 0.006340098154 | V10: =MIN(V$20:V5020) -> 0.04088673891 | W10: =MIN(W$20:W5020) -> 62540.41552 | X10: =MIN(X$20:X5020) -> 2308016.801 | Y10: =MIN(Y$20:Y5020) -> 2.009698903 | Z10: =MIN(Z$20:Z5020) -> 16.09728462 | AA10: =MIN(AA$20:AA5020) -> 24.05229921
B11: Store every ? runs | C11: 1 | H11: =VLOOKUP(H9,Model!$B$7:$D$9,2) -> Trans AtoB age 20 | I11: =VLOOKUP(I9,Model!$B$7:$D$9,2) -> Trans BtoC age 20 | J11: =VLOOKUP(J9,Model!$B$7:$D$9,2) -> Trans AtoB age 100 | K11: =VLOOKUP(K9,Model!$B$7:$D$9,2) -> Trans AtoB age 100 | R11: upper bound | S11: =MAX(S$20:S5020) -> 0.0002845396303 | T11: =MAX(T$20:T5020) -> 0.002938800238 | U11: =MAX(U$20:U5020) -> 0.007239385964 | V11: =MAX(V$20:V5020) -> 0.05189084549 | W11: =MAX(W$20:W5020) -> 656456.4514 | X11: =MAX(X$20:X5020) -> 3975017.187 | Y11: =MAX(Y$20:Y5020) -> 21.09483603 | Z11: =MAX(Z$20:Z5020) -> 27.72379431 | AA11: =MAX(AA$20:AA5020) -> 37.71478181
B12: Epsilon Multiplier (changed automatically by macro) | C12: 0.387420489 | G12: Initial sets | R12: Mean | S12: =AVERAGE(S$20:S5020) -> 3.329925297e-05 | T12: =AVERAGE(T$20:T5020) -> 0.0001301845234 | U12: =AVERAGE(U$20:U5020) -> 0.006922820504 | V12: =AVERAGE(V$20:V5020) -> 0.04595876776 | W12: =AVERAGE(W$20:W5020) -> 280611.5967 | X12: =AVERAGE(X$20:X5020) -> 2645627.983 | Y12: =AVERAGE(Y$20:Y5020) -> 9.017286076 | Z12: =AVERAGE(Z$20:Z5020) -> 18.45195695 | AA12: =AVERAGE(AA$20:AA5020) -> 27.46924302
B13: Current run number | C13: 5001 | G13: 1 | H13: 0.02 | I13: 0.02 | J13: 0.02 | K13: 0.02 | R13: 2.5 percentile | S13: =PERCENTILE(S$20:S5020,0.025) -> 1e-08 | T13: =PERCENTILE(T$20:T5020,0.025) -> 1e-08 | U13: =PERCENTILE(U$20:U5020,0.025) -> 0.006340098154 | V13: =PERCENTILE(V$20:V5020,0.025) -> 0.04195686055 | W13: =PERCENTILE(W$20:W5020,0.025) -> 86579.70315 | X13: =PERCENTILE(X$20:X5020,0.025) -> 2317801.821 | Y13: =PERCENTILE(Y$20:Y5020,0.025) -> 2.782187055 | Z13: =PERCENTILE(Z$20:Z5020,0.025) -> 16.16553034 | AA13: =PERCENTILE(AA$20:AA5020,0.025) -> 24.91517112
B14: Proportion of parameters to vary on each run | C14: 0.5 | G14: 2 | H14: 0.004 | I14: 0.5 | J14: 0.5 | K14: 0.5 | R14: 97.5 percentile | S14: =PERCENTILE(S$20:S5020,0.975) -> 0.0002845396303 | T14: =PERCENTILE(T$20:T5020,0.975) -> 0.001427048941 | U14: =PERCENTILE(U$20:U5020,0.975) -> 0.007161677435 | V14: =PERCENTILE(V$20:V5020,0.975) -> 0.04951643799 | W14: =PERCENTILE(W$20:W5020,0.975) -> 423570.4507 | X14: =PERCENTILE(X$20:X5020,0.975) -> 3515487.91 | Y14: =PERCENTILE(Y$20:Y5020,0.975) -> 13.61118348 | Z14: =PERCENTILE(Z$20:Z5020,0.975) -> 24.5188031 | AA14: =PERCENTILE(AA$20:AA5020,0.975) -> 31.8713667
B15: Show progress graph while running (slower) | C15: 0 | G15: 3 | H15: 0.003 | I15: 0.7 | J15: 0.7 | K15: 0.7 | R15: 97.5 percentile | S15: =STDEV(S$501:S5021) -> 8.387394834e-05 | T15: =STDEV(T$501:T5021) -> 0.0003842360894 | U15: =STDEV(U$501:U5021) -> 0.0002315344584 | V15: =STDEV(V$501:V5021) -> 0.001970769065
G16: =CONCATENATE("Currently using initial set ", $C$9) -> Currently using initial set 1 | H16: =VLOOKUP(InitialSetNumber,$G$13:$L$15,H9+1) -> 0.02 | I16: =VLOOKUP(InitialSetNumber,$G$13:$L$15,I9+1) -> 0.02 | J16: =VLOOKUP(InitialSetNumber,$G$13:$L$15,J9+1) -> 0.02 | K16: =VLOOKUP(InitialSetNumber,$G$13:$L$15,K9+1) -> 0.02
B17: Buttons for running macros | S17: 3 | T17: 4 | U17: 5 | V17: 6 | W17: 7 | X17: 8 | Y17: 9 | Z17: 10 | AA17: 11
G18: epsilon max | H18: 0.01 | I18: 0.01 | J18: 0.01 | K18: 0.01 | W18: =W7 -> SSE | Y18: =Y7 -> SSE/variance | AA18: =AA7 -> Total SSE
G19: Range for sampling parameters: | R19: Run Number | S19: =S8 -> Parameter 1 | T19: =T8 -> Parameter 2 | U19: =U8 -> Parameter 3 | V19: =V8 -> Parameter 4 | W19: =W8 -> Data set 1 | X19: =X8 -> Data set 2 | Y19: =Y8 -> Data set 1 | Z19: =Z8 -> Data set 2
G20: lower bound | H20: 1e-08 | I20: 1e-08 | J20: 1e-08 | K20: 1e-08 | Q20: =IF(AA20=$AA$10,1,"") ->  | R20: 1 | S20: 1e-08 | T20: 1e-08 | U20: 0.007025907066 | V20: 0.04642845792 | W20: 266818.4979 | X20: 2448725.376 | Y20: 8.574053086 | Z20: 17.07865789 | AA20: 25.65271097
G21: upper bound | H21: 0.999999999 | I21: 0.999999999 | J21: 0.999999999 | K21: 0.999999999 | R21: 2 | S21: 1e-08 | T21: 1e-08 | U21: 0.007025907066 | V21: 0.04642845792 | W21: 266818.4979 | X21: 2448725.376 | Y21: 8.574053086 | Z21: 17.07865789 | AA21: 25.65271097
G22: epsilon for current run | H22: =H18*EpsilonMultiplier -> 0.00387420489 | I22: =I18*EpsilonMultiplier -> 0.00387420489 | J22: =J18*EpsilonMultiplier -> 0.00387420489 | K22: =K18*EpsilonMultiplier -> 0.00387420489 | R22: 3 | S22: 1e-08 | T22: 1e-08 | U22: 0.007025907066 | V22: 0.04642845792 | W22: 266818.4979 | X22: 2448725.376 | Y22: 8.574053086 | Z22: 17.07865789 | AA22: 25.65271097
G23: U[-e,e] | H23: =(-H22+RAND()*2*H22) -> 0.003487970667 | I23: =(-I22+RAND()*2*I22) -> -0.003276200182 | J23: =(-J22+RAND()*2*J22) -> -0.003034714083 | K23: =(-K22+RAND()*2*K22) -> 0.002738509542 | R23: 4 | S23: 1e-08 | T23: 1e-08 | U23: 0.007025907066 | V23: 0.04642845792 | W23: 266818.4979 | X23: 2448725.376 | Y23: 8.574053086 | Z23: 17.07865789 | AA23: 25.65271097
B24: Estimating Variances | G24: Random number | H24: =RAND() -> 0.03605126863 | I24: =RAND() -> 0.5903630103 | J24: =RAND() -> 0.5703430302 | K24: =RAND() -> 0.4009901264 | R24: 5 | S24: 1e-08 | T24: 1e-08 | U24: 0.007025907066 | V24: 0.04642845792 | W24: 266818.4979 | X24: 2448725.376 | Y24: 8.574053086 | Z24: 17.07865789 | AA24: 25.65271097
B25: For each data set the MH algorithm is run to just fit to that one data set. | G25: Vary parameter on current run? | H25: =IF(H24<$C$14,1,0) -> 1 | I25: =IF(I24<$C$14,1,0) -> 0 | J25: =IF(J24<$C$14,1,0) -> 0 | K25: =IF(K24<$C$14,1,0) -> 1 | R25: 6 | S25: 1e-08 | T25: 1e-08 | U25: 0.007025907066 | V25: 0.04642845792 | W25: 266818.4979 | X25: 2448725.376 | Y25: 8.574053086 | Z25: 17.07865789 | AA25: 25.65271097
B26: The resulting minimum SSE is used to generate an estimate for the variance of a data set | G26: Values for proposal set | H26: =MIN(H21,MAX(H20,H33+H23*H25)) -> 0.003487980667 | I26: =MIN(I21,MAX(I20,I33+I23*I25)) -> 1e-08 | J26: =MIN(J21,MAX(J20,J33+J23*J25)) -> 0.007044474493 | K26: =MIN(K21,MAX(K20,K33+K23*K25)) -> 0.0490228115 | R26: 7 | S26: 1e-08 | T26: 1e-08 | U26: 0.007025907066 | V26: 0.04642845792 | W26: 266818.4979 | X26: 2448725.376 | Y26: 8.574053086 | Z26: 17.07865789 | AA26: 25.65271097
B27: Number of runs to estimate variances | C27: 1000 | R27: 8 | S27: 1e-08 | T27: 1e-08 | U27: 0.007025907066 | V27: 0.04642845792 | W27: 266818.4979 | X27: 2448725.376 | Y27: 8.574053086 | Z27: 17.07865789 | AA27: 25.65271097
B28: Estimate variances | C28: 0 | G28: Comparison of current set and proposal set | R28: 9 | S28: 1e-08 | T28: 1e-08 | U28: 0.007025907066 | V28: 0.04642845792 | W28: 266818.4979 | X28: 2448725.376 | Y28: 8.574053086 | Z28: 17.07865789 | AA28: 25.65271097
B29: Current data set number | C29: 0 | L29: SSE | N29: SSE/variance | P29: Total SSE | R29: 10 | S29: 1e-08 | T29: 1e-08 | U29: 0.007025907066 | V29: 0.04642845792 | W29: 266818.4979 | X29: 2448725.376 | Y29: 8.574053086 | Z29: 17.07865789 | AA29: 25.65271097
B30: Total SSE for current data set | C30: =OFFSET(C37,0,EstimateVariancesNumber-1) -> Current value of SSE | L30: Data set 1 | M30: Data set 2 | N30: Data set 1 | O30: Data set 2 | R30: 11 | S30: 1e-08 | T30: 1e-08 | U30: 0.007025907066 | V30: 0.04642845792 | W30: 266818.4979 | X30: 2448725.376 | Y30: 8.574053086 | Z30: 17.07865789 | AA30: 25.65271097
B31: Min total SSE for current data set | C31: =OFFSET(L32,0,EstimateVariancesNumber-1) -> 0.04628430196 | H31: =H10 -> Parameter 1 | I31: =I10 -> Parameter 2 | J31: =J10 -> Parameter 3 | K31: =K10 -> Parameter 4 | R31: 12 | S31: 1e-08 | T31: 1e-08 | U31: 0.007025907066 | V31: 0.04642845792 | W31: 266818.4979 | X31: 2448725.376 | Y31: 8.574053086 | Z31: 17.07865789 | AA31: 25.65271097
C32: 1 | D32: 2 | G32: Proposal Set | H32: 1e-08 | I32: 1e-08 | J32: 0.007044474493 | K32: 0.04628430196 | L32: ='Data, model predictions, SSE'!M21 -> 280107.4845 | M32: ='Data, model predictions, SSE'!N21 -> 2443942.494 | N32: =L32/C36 -> 9.001086733 | O32: =M32/D36 -> 17.04529963 | P32: =IF(EstimateVariances=0,SUM(N32:O32),C30) -> 26.04638637 | R32: 13 | S32: 1e-08 | T32: 1e-08 | U32: 0.007025907066 | V32: 0.04642845792 | W32: 266818.4979 | X32: 2448725.376 | Y32: 8.574053086 | Z32: 17.07865789 | AA32: 25.65271097
C33: Data set 1 | D33: Data set 2 | G33: Current Set | H33: 1e-08 | I33: 1e-08 | J33: 0.007044474493 | K33: 0.04628430196 | L33: 280107.4845 | M33: 2443942.494 | N33: 9.001086733 | O33: 17.04529963 | P33: 26.04638637 | R33: 14 | S33: 1e-08 | T33: 1e-08 | U33: 0.007025907066 | V33: 0.04642845792 | W33: 266818.4979 | X33: 2448725.376 | Y33: 8.574053086 | Z33: 17.07865789 | AA33: 25.65271097
B34: Minimum SSE when model is just fit to this data set | C34: 155596.4812 | D34: 1577171.89 | R34: 15 | S34: 1e-08 | T34: 1e-08 | U34: 0.007025907066 | V34: 0.04642845792 | W34: 266818.4979 | X34: 2448725.376 | Y34: 8.574053086 | Z34: 17.07865789 | AA34: 25.65271097
B35: Number of points in data set | C35: =COUNT('Data, model predictions, SSE'!C10:C20) -> 5 | D35: =COUNT('Data, model predictions, SSE'!G10:G20) -> 11 | G35: Contribtuions from priors | R35: 16 | S35: 1e-08 | T35: 1e-08 | U35: 0.007025907066 | V35: 0.04642845792 | W35: 266818.4979 | X35: 2448725.376 | Y35: 8.574053086 | Z35: 17.07865789 | AA35: 25.65271097
B36: Estimate of variance | C36: =C34/C35 -> 31119.29624 | D36: =D34/D35 -> 143379.2627 | H36: =H10 -> Parameter 1 | I36: =I10 -> Parameter 2 | J36: =J10 -> Parameter 3 | K36: =K10 -> Parameter 4 | R36: 17 | S36: 1e-08 | T36: 1e-08 | U36: 0.007025907066 | V36: 0.04642845792 | W36: 266818.4979 | X36: 2448725.376 | Y36: 8.574053086 | Z36: 17.07865789 | AA36: 25.65271097
B37: Current value of SSE | C37: =L32 -> 280107.4845 | D37: =M32 -> 2443942.494 | G37: Prior (beta dist) a | H37: 1 | I37: 1 | J37: 1 | K37: 1 | R37: 18 | S37: 1e-08 | T37: 1e-08 | U37: 0.007025907066 | V37: 0.04642845792 | W37: 266818.4979 | X37: 2448725.376 | Y37: 8.574053086 | Z37: 17.07865789 | AA37: 25.65271097
B38: Minimum value of SSE | C38: =W10 -> 62540.41552 | D38: =X10 -> 2308016.801 | G38: b | H38: 1 | I38: 1 | J38: 1 | K38: 1 | R38: 19 | S38: 1e-08 | T38: 1e-08 | U38: 0.007025907066 | V38: 0.04642845792 | W38: 266818.4979 | X38: 2448725.376 | Y38: 8.574053086 | Z38: 17.07865789 | AA38: 25.65271097
L39: Total contributions from priors | O39: Total SSE+prior contrs. | R39: 20 | S39: 1e-08 | T39: 1e-08 | U39: 0.007025907066 | V39: 0.04642845792 | W39: 266818.4979 | X39: 2448725.376 | Y39: 8.574053086 | Z39: 17.07865789 | AA39: 25.65271097
B40: Data on jump rate from last set of runs | G40: Proposal Set | H40: =-((H$37-1)*LOG(H32)+(H$38-1)*LOG(1-H32)) -> 0 | I40: =-((I$37-1)*LOG(I32)+(I$38-1)*LOG(1-I32)) -> 0 | J40: 0 | K40: 0 | L40: =SUM(H40:K40) -> 0 | P40: =P32+L40 -> 26.04638637 | R40: 21 | S40: 1e-08 | T40: 1e-08 | U40: 0.007025907066 | V40: 0.04642845792 | W40: 266818.4979 | X40: 2448725.376 | Y40: 8.574053086 | Z40: 17.07865789 | AA40: 25.65271097
B41: Tuning - Epsilon values should be selected to obtain a jump rate of between 0.2 and 0.3. | G41: Current Set | H41: =-((H$37-1)*LOG(H33)+(H$38-1)*LOG(1-H33)) -> 0 | I41: 0 | J41: 0 | K41: 0 | L41: =SUM(H41:K41) -> 0 | P41: =P33+L41 -> 26.04638637 | R41: 22 | S41: 1e-08 | T41: 1e-08 | U41: 0.007025907066 | V41: 0.04642845792 | W41: 266818.4979 | X41: 2448725.376 | Y41: 8.574053086 | Z41: 17.07865789 | AA41: 25.65271097
B42: Run Number | C42: Jump rate | D42: Episilon Multiplier | R42: 23 | S42: 1e-08 | T42: 1e-08 | U42: 0.007025907066 | V42: 0.04642845792 | W42: 266818.4979 | X42: 2448725.376 | Y42: 8.574053086 | Z42: 17.07865789 | AA42: 25.65271097
B43: 100 | C43: 0.13 | D43: 0.9 | R43: 24 | S43: 1e-08 | T43: 1e-08 | U43: 0.007025907066 | V43: 0.04642845792 | W43: 266818.4979 | X43: 2448725.376 | Y43: 8.574053086 | Z43: 17.07865789 | AA43: 25.65271097
B44: 200 | C44: 0.21 | D44: 0.9 | G44: Accept/Reject proposal set | H44: =IF((P40-P41)<0,1,IF(RAND()<EXP(-0.5*(P40-P41)),1,0)) -> 1 | R44: 25 | S44: 1e-08 | T44: 1e-08 | U44: 0.007025907066 | V44: 0.04642845792 | W44: 266818.4979 | X44: 2448725.376 | Y44: 8.574053086 | Z44: 17.07865789 | AA44: 25.65271097
B45: 300 | C45: 0.16 | D45: 0.9 | R45: 26 | S45: 1e-08 | T45: 1e-08 | U45: 0.007025907066 | V45: 0.04642845792 | W45: 266818.4979 | X45: 2448725.376 | Y45: 8.574053086 | Z45: 17.07865789 | AA45: 25.65271097
B46: 400 | C46: 0.17 | D46: 0.9 | R46: 27 | S46: 1e-08 | T46: 1e-08 | U46: 0.007025907066 | V46: 0.04642845792 | W46: 266818.4979 | X46: 2448725.376 | Y46: 8.574053086 | Z46: 17.07865789 | AA46: 25.65271097
B47: 500 | C47: 0.22 | D47: 0.9 | R47: 28 | S47: 1e-08 | T47: 1e-08 | U47: 0.007025907066 | V47: 0.04642845792 | W47: 266818.4979 | X47: 2448725.376 | Y47: 8.574053086 | Z47: 17.07865789 | AA47: 25.65271097
B48: 600 | C48: 0.15 | D48: 0.9 | R48: 29 | S48: 1e-08 | T48: 1e-08 | U48: 0.007025907066 | V48: 0.04642845792 | W48: 266818.4979 | X48: 2448725.376 | Y48: 8.574053086 | Z48: 17.07865789 | AA48: 25.65271097
B49: 700 | C49: 0.11 | D49: 0.81 | R49: 30 | S49: 1e-08 | T49: 1e-08 | U49: 0.007025907066 | V49: 0.04642845792 | W49: 266818.4979 | X49: 2448725.376 | Y49: 8.574053086 | Z49: 17.07865789 | AA49: 25.65271097
B50: 800 | C50: 0.08 | D50: 0.729 | R50: 31 | S50: 1e-08 | T50: 1e-08 | U50: 0.007025907066 | V50: 0.04642845792 | W50: 266818.4979 | X50: 2448725.376 | Y50: 8.574053086 | Z50: 17.07865789 | AA50: 25.65271097
B51: 900 | C51: 0.13 | D51: 0.6561 | S51: 1e-08 | T51: 1e-08 | U51: 0.007025907066 | V51: 0.04642845792 | W51: 266818.4979 | X51: 2448725.376 | Y51: 8.574053086 | Z51: 17.07865789 | AA51: 25.65271097
B52: 1000 | C52: 0.13 | D52: 0.59049 | R52: 32 | S52: 1e-08 | T52: 1e-08 | U52: 0.007025907066 | V52: 0.04642845792 | W52: 266818.4979 | X52: 2448725.376 | Y52: 8.574053086 | Z52: 17.07865789 | AA52: 25.65271097
B53: 1100 | C53: 0.15 | D53: 0.59049 | R53: 33 | S53: 1e-08 | T53: 1e-08 | U53: 0.007025907066 | V53: 0.04642845792 | W53: 266818.4979 | X53: 2448725.376 | Y53: 8.574053086 | Z53: 17.07865789 | AA53: 25.65271097
B54: 1200 | C54: 0.17 | D54: 0.59049 | R54: 34 | S54: 1e-08 | T54: 1e-08 | U54: 0.007025907066 | V54: 0.04642845792 | W54: 266818.4979 | X54: 2448725.376 | Y54: 8.574053086 | Z54: 17.07865789 | AA54: 25.65271097
B55: 1300 | C55: 0.25 | D55: 0.59049 | R55: 35 | S55: 1e-08 | T55: 1e-08 | U55: 0.007025907066 | V55: 0.04642845792 | W55: 266818.4979 | X55: 2448725.376 | Y55: 8.574053086 | Z55: 17.07865789 | AA55: 25.65271097
B56: 1400 | C56: 0.15 | D56: 0.59049 | R56: 36 | S56: 1e-08 | T56: 1e-08 | U56: 0.007025907066 | V56: 0.04642845792 | W56: 266818.4979 | X56: 2448725.376 | Y56: 8.574053086 | Z56: 17.07865789 | AA56: 25.65271097
B57: 1500 | C57: 0.24 | D57: 0.59049 | R57: 37 | S57: 1e-08 | T57: 1e-08 | U57: 0.007025907066 | V57: 0.04642845792 | W57: 266818.4979 | X57: 2448725.376 | Y57: 8.574053086 | Z57: 17.07865789 | AA57: 25.65271097
B58: 1600 | C58: 0.22 | D58: 0.59049 | R58: 38 | S58: 1e-08 | T58: 1e-08 | U58: 0.007025907066 | V58: 0.04642845792 | W58: 266818.4979 | X58: 2448725.376 | Y58: 8.574053086 | Z58: 17.07865789 | AA58: 25.65271097
B59: 1700 | C59: 0.16 | D59: 0.59049 | R59: 39 | S59: 1e-08 | T59: 1e-08 | U59: 0.007025907066 | V59: 0.04642845792 | W59: 266818.4979 | X59: 2448725.376 | Y59: 8.574053086 | Z59: 17.07865789 | AA59: 25.65271097
B60: 1800 | C60: 0.12 | D60: 0.531441 | R60: 40 | S60: 1e-08 | T60: 1e-08 | U60: 0.007025907066 | V60: 0.04642845792 | W60: 266818.4979 | X60: 2448725.376 | Y60: 8.574053086 | Z60: 17.07865789 | AA60: 25.65271097
B61: 1900 | C61: 0.15 | D61: 0.531441 | R61: 41 | S61: 1e-08 | T61: 1e-08 | U61: 0.007025907066 | V61: 0.04642845792 | W61: 266818.4979 | X61: 2448725.376 | Y61: 8.574053086 | Z61: 17.07865789 | AA61: 25.65271097
B62: 2000 | C62: 0.19 | D62: 0.531441 | R62: 42 | S62: 1e-08 | T62: 1e-08 | U62: 0.007025907066 | V62: 0.04642845792 | W62: 266818.4979 | X62: 2448725.376 | Y62: 8.574053086 | Z62: 17.07865789 | AA62: 25.65271097
B63: 2100 | C63: 0.22 | D63: 0.531441 | R63: 43 | S63: 1e-08 | T63: 1e-08 | U63: 0.007025907066 | V63: 0.04642845792 | W63: 266818.4979 | X63: 2448725.376 | Y63: 8.574053086 | Z63: 17.07865789 | AA63: 25.65271097
B64: 2200 | C64: 0.3 | D64: 0.531441 | R64: 44 | S64: 1e-08 | T64: 1e-08 | U64: 0.007025907066 | V64: 0.04642845792 | W64: 266818.4979 | X64: 2448725.376 | Y64: 8.574053086 | Z64: 17.07865789 | AA64: 25.65271097
B65: 2300 | C65: 0.17 | D65: 0.531441 | R65: 45 | S65: 1e-08 | T65: 1e-08 | U65: 0.007025907066 | V65: 0.04642845792 | W65: 266818.4979 | X65: 2448725.376 | Y65: 8.574053086 | Z65: 17.07865789 | AA65: 25.65271097
B66: 2400 | C66: 0.14 | D66: 0.4782969 | R66: 46 | S66: 1e-08 | T66: 1e-08 | U66: 0.007025907066 | V66: 0.04642845792 | W66: 266818.4979 | X66: 2448725.376 | Y66: 8.574053086 | Z66: 17.07865789 | AA66: 25.65271097
B67: 2500 | C67: 0.16 | D67: 0.4782969 | R67: 47 | S67: 1e-08 | T67: 1e-08 | U67: 0.007025907066 | V67: 0.04642845792 | W67: 266818.4979 | X67: 2448725.376 | Y67: 8.574053086 | Z67: 17.07865789 | AA67: 25.65271097
B68: 2600 | C68: 0.22 | D68: 0.4782969 | R68: 48 | S68: 1e-08 | T68: 1e-08 | U68: 0.007025907066 | V68: 0.04642845792 | W68: 266818.4979 | X68: 2448725.376 | Y68: 8.574053086 | Z68: 17.07865789 | AA68: 25.65271097
B69: 2700 | C69: 0.07 | D69: 0.43046721 | R69: 49 | S69: 1e-08 | T69: 1e-08 | U69: 0.007025907066 | V69: 0.04642845792 | W69: 266818.4979 | X69: 2448725.376 | Y69: 8.574053086 | Z69: 17.07865789 | AA69: 25.65271097
B70: 2800 | C70: 0.16 | D70: 0.43046721 | R70: 50 | S70: 1e-08 | T70: 1e-08 | U70: 0.007025907066 | V70: 0.04642845792 | W70: 266818.4979 | X70: 2448725.376 | Y70: 8.574053086 | Z70: 17.07865789 | AA70: 25.65271097
B71: 2900 | C71: 0.14 | D71: 0.387420489 | R71: 51 | S71: 1e-08 | T71: 1e-08 | U71: 0.007025907066 | V71: 0.04642845792 | W71: 266818.4979 | X71: 2448725.376 | Y71: 8.574053086 | Z71: 17.07865789 | AA71: 25.65271097
B72: 3000 | C72: 0.26 | D72: 0.387420489 | R72: 52 | S72: 1e-08 | T72: 1e-08 | U72: 0.007025907066 | V72: 0.04642845792 | W72: 266818.4979 | X72: 2448725.376 | Y72: 8.574053086 | Z72: 17.07865789 | AA72: 25.65271097
B73: 3100 | C73: 0.2 | D73: 0.387420489 | R73: 53 | S73: 1e-08 | T73: 1e-08 | U73: 0.00694175153 | V73: 0.04642845792 | W73: 339086.1577 | X73: 2412663.359 | Y73: 10.89633117 | Z73: 16.82714301 | AA73: 27.72347419
B74: 3200 | C74: 0.25 | D74: 0.387420489 | R74: 54 | S74: 1e-08 | T74: 1e-08 | U74: 0.00694175153 | V74: 0.04642845792 | W74: 339086.1577 | X74: 2412663.359 | Y74: 10.89633117 | Z74: 16.82714301 | AA74: 27.72347419
B75: 3300 | C75: 0.23 | D75: 0.387420489 | R75: 55 | S75: 1e-08 | T75: 1e-08 | U75: 0.00694175153 | V75: 0.04642845792 | W75: 339086.1577 | X75: 2412663.359 | Y75: 10.89633117 | Z75: 16.82714301 | AA75: 27.72347419
B76: 3400 | C76: 0.26 | D76: 0.387420489 | R76: 56 | S76: 1e-08 | T76: 1e-08 | U76: 0.00694175153 | V76: 0.04642845792 | W76: 339086.1577 | X76: 2412663.359 | Y76: 10.89633117 | Z76: 16.82714301 | AA76: 27.72347419
B77: 3500 | C77: 0.27 | D77: 0.387420489 | R77: 57 | S77: 1e-08 | T77: 1e-08 | U77: 0.00694175153 | V77: 0.04642845792 | W77: 339086.1577 | X77: 2412663.359 | Y77: 10.89633117 | Z77: 16.82714301 | AA77: 27.72347419
B78: 3600 | C78: 0.19 | D78: 0.387420489 | R78: 58 | S78: 1e-08 | T78: 1e-08 | U78: 0.00694175153 | V78: 0.04642845792 | W78: 339086.1577 | X78: 2412663.359 | Y78: 10.89633117 | Z78: 16.82714301 | AA78: 27.72347419
B79: 3700 | C79: 0.22 | D79: 0.387420489 | R79: 59 | S79: 1e-08 | T79: 1e-08 | U79: 0.00694175153 | V79: 0.04642845792 | W79: 339086.1577 | X79: 2412663.359 | Y79: 10.89633117 | Z79: 16.82714301 | AA79: 27.72347419
B80: 3800 | C80: 0.24 | D80: 0.387420489 | R80: 60 | S80: 1e-08 | T80: 1e-08 | U80: 0.00694175153 | V80: 0.04642845792 | W80: 339086.1577 | X80: 2412663.359 | Y80: 10.89633117 | Z80: 16.82714301 | AA80: 27.72347419
B81: 3900 | C81: 0.17 | D81: 0.387420489 | R81: 61 | S81: 1e-08 | T81: 1e-08 | U81: 0.00694175153 | V81: 0.04642845792 | W81: 339086.1577 | X81: 2412663.359 | Y81: 10.89633117 | Z81: 16.82714301 | AA81: 27.72347419
B82: 4000 | C82: 0.2 | D82: 0.387420489 | R82: 62 | S82: 1e-08 | T82: 1e-08 | U82: 0.00694175153 | V82: 0.04642845792 | W82: 339086.1577 | X82: 2412663.359 | Y82: 10.89633117 | Z82: 16.82714301 | AA82: 27.72347419
B83: 4100 | C83: 0.21 | D83: 0.387420489 | R83: 63 | S83: 1e-08 | T83: 1e-08 | U83: 0.00694175153 | V83: 0.04642845792 | W83: 339086.1577 | X83: 2412663.359 | Y83: 10.89633117 | Z83: 16.82714301 | AA83: 27.72347419
B84: 4200 | C84: 0.26 | D84: 0.387420489 | R84: 64 | S84: 1e-08 | T84: 1e-08 | U84: 0.00694175153 | V84: 0.04642845792 | W84: 339086.1577 | X84: 2412663.359 | Y84: 10.89633117 | Z84: 16.82714301 | AA84: 27.72347419
B85: 4300 | C85: 0.22 | D85: 0.387420489 | Q85: =IF(AA85=$AA$10,1,"") ->  | R85: 65 | S85: 1e-08 | T85: 1e-08 | U85: 0.00694175153 | V85: 0.04642845792 | W85: 339086.1577 | X85: 2412663.359 | Y85: 10.89633117 | Z85: 16.82714301 | AA85: 27.72347419
B86: 4400 | C86: 0.17 | D86: 0.387420489 | R86: 66 | S86: 1e-08 | T86: 1e-08 | U86: 0.00694175153 | V86: 0.04642845792 | W86: 339086.1577 | X86: 2412663.359 | Y86: 10.89633117 | Z86: 16.82714301 | AA86: 27.72347419
B87: 4500 | C87: 0.21 | D87: 0.387420489 | R87: 67 | S87: 1e-08 | T87: 1e-08 | U87: 0.00694175153 | V87: 0.04642845792 | W87: 339086.1577 | X87: 2412663.359 | Y87: 10.89633117 | Z87: 16.82714301 | AA87: 27.72347419
B88: 4600 | C88: 0.21 | D88: 0.387420489 | R88: 68 | S88: 1e-08 | T88: 1e-08 | U88: 0.00694175153 | V88: 0.04642845792 | W88: 339086.1577 | X88: 2412663.359 | Y88: 10.89633117 | Z88: 16.82714301 | AA88: 27.72347419
B89: 4700 | C89: 0.31 | D89: 0.387420489 | R89: 69 | S89: 1e-08 | T89: 1e-08 | U89: 0.00694175153 | V89: 0.04642845792 | W89: 339086.1577 | X89: 2412663.359 | Y89: 10.89633117 | Z89: 16.82714301 | AA89: 27.72347419
B90: 4800 | C90: 0.15 | D90: 0.387420489 | R90: 70 | S90: 1e-08 | T90: 1e-08 | U90: 0.00694175153 | V90: 0.04642845792 | W90: 339086.1577 | X90: 2412663.359 | Y90: 10.89633117 | Z90: 16.82714301 | AA90: 27.72347419
B91: 4900 | C91: 0.23 | D91: 0.387420489 | R91: 71 | S91: 1e-08 | T91: 1e-08 | U91: 0.00694175153 | V91: 0.04642845792 | W91: 339086.1577 | X91: 2412663.359 | Y91: 10.89633117 | Z91: 16.82714301 | AA91: 27.72347419
B92: 5000 | C92: 0.24 | D92: 0.387420489 | R92: 72 | S92: 1e-08 | T92: 1e-08 | U92: 0.00694175153 | V92: 0.04642845792 | W92: 339086.1577 | X92: 2412663.359 | Y92: 10.89633117 | Z92: 16.82714301 | AA92: 27.72347419
R93: 73 | S93: 1e-08 | T93: 1e-08 | U93: 0.00694175153 | V93: 0.04642845792 | W93: 339086.1577 | X93: 2412663.359 | Y93: 10.89633117 | Z93: 16.82714301 | AA93: 27.72347419
R94: 74 | S94: 1e-08 | T94: 1e-08 | U94: 0.00694175153 | V94: 0.04642845792 | W94: 339086.1577 | X94: 2412663.359 | Y94: 10.89633117 | Z94: 16.82714301 | AA94: 27.72347419
R95: 75 | S95: 1e-08 | T95: 1e-08 | U95: 0.00694175153 | V95: 0.04642845792 | W95: 339086.1577 | X95: 2412663.359 | Y95: 10.89633117 | Z95: 16.82714301 | AA95: 27.72347419
R96: 76 | S96: 1e-08 | T96: 1e-08 | U96: 0.00694175153 | V96: 0.04642845792 | W96: 339086.1577 | X96: 2412663.359 | Y96: 10.89633117 | Z96: 16.82714301 | AA96: 27.72347419
R97: 77 | S97: 1e-08 | T97: 1e-08 | U97: 0.00694175153 | V97: 0.04642845792 | W97: 339086.1577 | X97: 2412663.359 | Y97: 10.89633117 | Z97: 16.82714301 | AA97: 27.72347419
R98: 78 | S98: 1e-08 | T98: 1e-08 | U98: 0.00694175153 | V98: 0.04642845792 | W98: 339086.1577 | X98: 2412663.359 | Y98: 10.89633117 | Z98: 16.82714301 | AA98: 27.72347419
R99: 79 | S99: 1e-08 | T99: 1e-08 | U99: 0.00694175153 | V99: 0.04642845792 | W99: 339086.1577 | X99: 2412663.359 | Y99: 10.89633117 | Z99: 16.82714301 | AA99: 27.72347419
R100: 80 | S100: 1e-08 | T100: 1e-08 | U100: 0.00694175153 | V100: 0.04642845792 | W100: 339086.1577 | X100: 2412663.359 | Y100: 10.89633117 | Z100: 16.82714301 | AA100: 27.72347419
R101: 81 | S101: 1e-08 | T101: 1e-08 | U101: 0.00694175153 | V101: 0.04642845792 | W101: 339086.1577 | X101: 2412663.359 | Y101: 10.89633117 | Z101: 16.82714301 | AA101: 27.72347419
R102: 82 | S102: 1e-08 | T102: 1e-08 | U102: 0.00694175153 | V102: 0.04642845792 | W102: 339086.1577 | X102: 2412663.359 | Y102: 10.89633117 | Z102: 16.82714301 | AA102: 27.72347419
R103: 83 | S103: 1e-08 | T103: 1e-08 | U103: 0.00694175153 | V103: 0.04642845792 | W103: 339086.1577 | X103: 2412663.359 | Y103: 10.89633117 | Z103: 16.82714301 | AA103: 27.72347419
R104: 84 | S104: 1e-08 | T104: 1e-08 | U104: 0.00694175153 | V104: 0.04642845792 | W104: 339086.1577 | X104: 2412663.359 | Y104: 10.89633117 | Z104: 16.82714301 | AA104: 27.72347419
R105: 85 | S105: 1e-08 | T105: 1e-08 | U105: 0.00694175153 | V105: 0.04642845792 | W105: 339086.1577 | X105: 2412663.359 | Y105: 10.89633117 | Z105: 16.82714301 | AA105: 27.72347419
R106: 86 | S106: 1e-08 | T106: 1e-08 | U106: 0.00694175153 | V106: 0.04642845792 | W106: 339086.1577 | X106: 2412663.359 | Y106: 10.89633117 | Z106: 16.82714301 | AA106: 27.72347419
R107: 87 | S107: 1e-08 | T107: 1e-08 | U107: 0.00694175153 | V107: 0.04642845792 | W107: 339086.1577 | X107: 2412663.359 | Y107: 10.89633117 | Z107: 16.82714301 | AA107: 27.72347419
R108: 88 | S108: 1e-08 | T108: 1e-08 | U108: 0.00694175153 | V108: 0.04642845792 | W108: 339086.1577 | X108: 2412663.359 | Y108: 10.89633117 | Z108: 16.82714301 | AA108: 27.72347419
R109: 89 | S109: 1e-08 | T109: 1e-08 | U109: 0.00694175153 | V109: 0.04642845792 | W109: 339086.1577 | X109: 2412663.359 | Y109: 10.89633117 | Z109: 16.82714301 | AA109: 27.72347419
R110: 90 | S110: 1e-08 | T110: 1e-08 | U110: 0.00694175153 | V110: 0.04642845792 | W110: 339086.1577 | X110: 2412663.359 | Y110: 10.89633117 | Z110: 16.82714301 | AA110: 27.72347419
R111: 91 | S111: 1e-08 | T111: 1e-08 | U111: 0.00694175153 | V111: 0.04642845792 | W111: 339086.1577 | X111: 2412663.359 | Y111: 10.89633117 | Z111: 16.82714301 | AA111: 27.72347419
R112: 92 | S112: 1e-08 | T112: 1e-08 | U112: 0.00694175153 | V112: 0.04642845792 | W112: 339086.1577 | X112: 2412663.359 | Y112: 10.89633117 | Z112: 16.82714301 | AA112: 27.72347419
R113: 93 | S113: 1e-08 | T113: 1e-08 | U113: 0.00694175153 | V113: 0.04642845792 | W113: 339086.1577 | X113: 2412663.359 | Y113: 10.89633117 | Z113: 16.82714301 | AA113: 27.72347419
R114: 94 | S114: 1e-08 | T114: 1e-08 | U114: 0.00694175153 | V114: 0.04642845792 | W114: 339086.1577 | X114: 2412663.359 | Y114: 10.89633117 | Z114: 16.82714301 | AA114: 27.72347419
R115: 95 | S115: 1e-08 | T115: 1e-08 | U115: 0.00694175153 | V115: 0.04642845792 | W115: 339086.1577 | X115: 2412663.359 | Y115: 10.89633117 | Z115: 16.82714301 | AA115: 27.72347419
R116: 96 | S116: 1e-08 | T116: 1e-08 | U116: 0.00694175153 | V116: 0.04642845792 | W116: 339086.1577 | X116: 2412663.359 | Y116: 10.89633117 | Z116: 16.82714301 | AA116: 27.72347419
R117: 97 | S117: 1e-08 | T117: 1e-08 | U117: 0.00694175153 | V117: 0.04642845792 | W117: 339086.1577 | X117: 2412663.359 | Y117: 10.89633117 | Z117: 16.82714301 | AA117: 27.72347419
R118: 98 | S118: 1e-08 | T118: 1e-08 | U118: 0.00694175153 | V118: 0.04642845792 | W118: 339086.1577 | X118: 2412663.359 | Y118: 10.89633117 | Z118: 16.82714301 | AA118: 27.72347419
R119: 99 | S119: 1e-08 | T119: 1e-08 | U119: 0.00694175153 | V119: 0.04642845792 | W119: 339086.1577 | X119: 2412663.359 | Y119: 10.89633117 | Z119: 16.82714301 | AA119: 27.72347419
R120: 100 | S120: 1e-08 | T120: 1e-08 | U120: 0.00694175153 | V120: 0.04642845792 | W120: 339086.1577 | X120: 2412663.359 | Y120: 10.89633117 | Z120: 16.82714301 | AA120: 27.72347419
R121: 101 | S121: 1e-08 | T121: 1e-08 | U121: 0.00694175153 | V121: 0.04642845792 | W121: 339086.1577 | X121: 2412663.359 | Y121: 10.89633117 | Z121: 16.82714301 | AA121: 27.72347419
R122: 102 | S122: 1e-08 | T122: 1e-08 | U122: 0.00694175153 | V122: 0.04642845792 | W122: 339086.1577 | X122: 2412663.359 | Y122: 10.89633117 | Z122: 16.82714301 | AA122: 27.72347419
R123: 103 | S123: 1e-08 | T123: 1e-08 | U123: 0.00694175153 | V123: 0.04642845792 | W123: 339086.1577 | X123: 2412663.359 | Y123: 10.89633117 | Z123: 16.82714301 | AA123: 27.72347419
R124: 104 | S124: 1e-08 | T124: 1e-08 | U124: 0.00694175153 | V124: 0.04642845792 | W124: 339086.1577 | X124: 2412663.359 | Y124: 10.89633117 | Z124: 16.82714301 | AA124: 27.72347419
R125: 105 | S125: 1e-08 | T125: 1e-08 | U125: 0.00694175153 | V125: 0.04380308711 | W125: 351434.8866 | X125: 2329002.6 | Y125: 11.2931502 | Z125: 16.24365028 | AA125: 27.53680048
R126: 106 | S126: 1e-08 | T126: 1e-08 | U126: 0.00694175153 | V126: 0.04380308711 | W126: 351434.8866 | X126: 2329002.6 | Y126: 11.2931502 | Z126: 16.24365028 | AA126: 27.53680048
R127: 107 | S127: 1e-08 | T127: 1e-08 | U127: 0.00694175153 | V127: 0.04380308711 | W127: 351434.8866 | X127: 2329002.6 | Y127: 11.2931502 | Z127: 16.24365028 | AA127: 27.53680048
R128: 108 | S128: 1e-08 | T128: 1e-08 | U128: 0.00694175153 | V128: 0.04380308711 | W128: 351434.8866 | X128: 2329002.6 | Y128: 11.2931502 | Z128: 16.24365028 | AA128: 27.53680048
R129: 109 | S129: 1e-08 | T129: 1e-08 | U129: 0.00694175153 | V129: 0.04380308711 | W129: 351434.8866 | X129: 2329002.6 | Y129: 11.2931502 | Z129: 16.24365028 | AA129: 27.53680048
R130: 110 | S130: 1e-08 | T130: 1e-08 | U130: 0.00694175153 | V130: 0.04380308711 | W130: 351434.8866 | X130: 2329002.6 | Y130: 11.2931502 | Z130: 16.24365028 | AA130: 27.53680048
R131: 111 | S131: 1e-08 | T131: 1e-08 | U131: 0.00694175153 | V131: 0.04380308711 | W131: 351434.8866 | X131: 2329002.6 | Y131: 11.2931502 | Z131: 16.24365028 | AA131: 27.53680048
R132: 112 | S132: 1e-08 | T132: 1e-08 | U132: 0.00694175153 | V132: 0.04380308711 | W132: 351434.8866 | X132: 2329002.6 | Y132: 11.2931502 | Z132: 16.24365028 | AA132: 27.53680048
R133: 113 | S133: 1e-08 | T133: 1e-08 | U133: 0.00694175153 | V133: 0.04380308711 | W133: 351434.8866 | X133: 2329002.6 | Y133: 11.2931502 | Z133: 16.24365028 | AA133: 27.53680048
R134: 114 | S134: 1e-08 | T134: 1e-08 | U134: 0.00694175153 | V134: 0.04380308711 | W134: 351434.8866 | X134: 2329002.6 | Y134: 11.2931502 | Z134: 16.24365028 | AA134: 27.53680048
R135: 115 | S135: 1e-08 | T135: 1e-08 | U135: 0.00694175153 | V135: 0.04380308711 | W135: 351434.8866 | X135: 2329002.6 | Y135: 11.2931502 | Z135: 16.24365028 | AA135: 27.53680048
R136: 116 | S136: 1e-08 | T136: 1e-08 | U136: 0.00694175153 | V136: 0.04380308711 | W136: 351434.8866 | X136: 2329002.6 | Y136: 11.2931502 | Z136: 16.24365028 | AA136: 27.53680048
R137: 117 | S137: 1e-08 | T137: 1e-08 | U137: 0.00694175153 | V137: 0.04380308711 | W137: 351434.8866 | X137: 2329002.6 | Y137: 11.2931502 | Z137: 16.24365028 | AA137: 27.53680048
R138: 118 | S138: 1e-08 | T138: 1e-08 | U138: 0.00694175153 | V138: 0.04380308711 | W138: 351434.8866 | X138: 2329002.6 | Y138: 11.2931502 | Z138: 16.24365028 | AA138: 27.53680048
R139: 119 | S139: 1e-08 | T139: 1e-08 | U139: 0.00694175153 | V139: 0.04380308711 | W139: 351434.8866 | X139: 2329002.6 | Y139: 11.2931502 | Z139: 16.24365028 | AA139: 27.53680048
R140: 120 | S140: 1e-08 | T140: 1e-08 | U140: 0.00694175153 | V140: 0.04380308711 | W140: 351434.8866 | X140: 2329002.6 | Y140: 11.2931502 | Z140: 16.24365028 | AA140: 27.53680048
R141: 121 | S141: 1e-08 | T141: 1e-08 | U141: 0.00694175153 | V141: 0.04380308711 | W141: 351434.8866 | X141: 2329002.6 | Y141: 11.2931502 | Z141: 16.24365028 | AA141: 27.53680048
R142: 122 | S142: 1e-08 | T142: 1e-08 | U142: 0.00694175153 | V142: 0.04380308711 | W142: 351434.8866 | X142: 2329002.6 | Y142: 11.2931502 | Z142: 16.24365028 | AA142: 27.53680048
R143: 123 | S143: 1e-08 | T143: 1e-08 | U143: 0.00694175153 | V143: 0.04380308711 | W143: 351434.8866 | X143: 2329002.6 | Y143: 11.2931502 | Z143: 16.24365028 | AA143: 27.53680048
R144: 124 | S144: 1e-08 | T144: 1e-08 | U144: 0.00694175153 | V144: 0.04380308711 | W144: 351434.8866 | X144: 2329002.6 | Y144: 11.2931502 | Z144: 16.24365028 | AA144: 27.53680048
R145: 125 | S145: 1e-08 | T145: 1e-08 | U145: 0.00694175153 | V145: 0.04380308711 | W145: 351434.8866 | X145: 2329002.6 | Y145: 11.2931502 | Z145: 16.24365028 | AA145: 27.53680048
R146: 126 | S146: 1e-08 | T146: 1e-08 | U146: 0.00694175153 | V146: 0.04380308711 | W146: 351434.8866 | X146: 2329002.6 | Y146: 11.2931502 | Z146: 16.24365028 | AA146: 27.53680048
R147: 127 | S147: 1e-08 | T147: 1e-08 | U147: 0.00694175153 | V147: 0.04380308711 | W147: 351434.8866 | X147: 2329002.6 | Y147: 11.2931502 | Z147: 16.24365028 | AA147: 27.53680048
R148: 128 | S148: 1e-08 | T148: 1e-08 | U148: 0.00694175153 | V148: 0.04380308711 | W148: 351434.8866 | X148: 2329002.6 | Y148: 11.2931502 | Z148: 16.24365028 | AA148: 27.53680048
Q149: =IF(AA149=$AA$10,1,"") ->  | R149: 129 | S149: 1e-08 | T149: 0.0007201168815 | U149: 0.00694175153 | V149: 0.04380308711 | W149: 341727.5096 | X149: 2464804.426 | Y149: 10.98120944 | Z149: 17.19080137 | AA149: 28.17201081
R150: 130 | S150: 1e-08 | T150: 0.0007201168815 | U150: 0.00694175153 | V150: 0.04380308711 | W150: 341727.5096 | X150: 2464804.426 | Y150: 10.98120944 | Z150: 17.19080137 | AA150: 28.17201081
R151: 131 | S151: 1e-08 | T151: 0.0007201168815 | U151: 0.00694175153 | V151: 0.04380308711 | W151: 341727.5096 | X151: 2464804.426 | Y151: 10.98120944 | Z151: 17.19080137 | AA151: 28.17201081
R152: 132 | S152: 1e-08 | T152: 0.0007201168815 | U152: 0.00694175153 | V152: 0.04380308711 | W152: 341727.5096 | X152: 2464804.426 | Y152: 10.98120944 | Z152: 17.19080137 | AA152: 28.17201081
R153: 133 | S153: 1e-08 | T153: 0.0007201168815 | U153: 0.00694175153 | V153: 0.04380308711 | W153: 341727.5096 | X153: 2464804.426 | Y153: 10.98120944 | Z153: 17.19080137 | AA153: 28.17201081
R154: 134 | S154: 1e-08 | T154: 0.0007201168815 | U154: 0.00694175153 | V154: 0.04380308711 | W154: 341727.5096 | X154: 2464804.426 | Y154: 10.98120944 | Z154: 17.19080137 | AA154: 28.17201081
R155: 135 | S155: 1e-08 | T155: 0.0007201168815 | U155: 0.00694175153 | V155: 0.04380308711 | W155: 341727.5096 | X155: 2464804.426 | Y155: 10.98120944 | Z155: 17.19080137 | AA155: 28.17201081
R156: 136 | S156: 1e-08 | T156: 0.0007201168815 | U156: 0.00694175153 | V156: 0.04380308711 | W156: 341727.5096 | X156: 2464804.426 | Y156: 10.98120944 | Z156: 17.19080137 | AA156: 28.17201081
R157: 137 | S157: 1e-08 | T157: 0.0007201168815 | U157: 0.00694175153 | V157: 0.04380308711 | W157: 341727.5096 | X157: 2464804.426 | Y157: 10.98120944 | Z157: 17.19080137 | AA157: 28.17201081
R158: 138 | S158: 1e-08 | T158: 1e-08 | U158: 0.00694175153 | V158: 0.04380308711 | W158: 351434.8866 | X158: 2329002.6 | Y158: 11.2931502 | Z158: 16.24365028 | AA158: 27.53680048
R159: 139 | S159: 1e-08 | T159: 1e-08 | U159: 0.00694175153 | V159: 0.04380308711 | W159: 351434.8866 | X159: 2329002.6 | Y159: 11.2931502 | Z159: 16.24365028 | AA159: 27.53680048
R160: 140 | S160: 1e-08 | T160: 1e-08 | U160: 0.00694175153 | V160: 0.04380308711 | W160: 351434.8866 | X160: 2329002.6 | Y160: 11.2931502 | Z160: 16.24365028 | AA160: 27.53680048
R161: 141 | S161: 1e-08 | T161: 1e-08 | U161: 0.00694175153 | V161: 0.04380308711 | W161: 351434.8866 | X161: 2329002.6 | Y161: 11.2931502 | Z161: 16.24365028 | AA161: 27.53680048
R162: 142 | S162: 1e-08 | T162: 1e-08 | U162: 0.00694175153 | V162: 0.04380308711 | W162: 351434.8866 | X162: 2329002.6 | Y162: 11.2931502 | Z162: 16.24365028 | AA162: 27.53680048
R163: 143 | S163: 1e-08 | T163: 1e-08 | U163: 0.00694175153 | V163: 0.04380308711 | W163: 351434.8866 | X163: 2329002.6 | Y163: 11.2931502 | Z163: 16.24365028 | AA163: 27.53680048
R164: 144 | S164: 1e-08 | T164: 1e-08 | U164: 0.00694175153 | V164: 0.04380308711 | W164: 351434.8866 | X164: 2329002.6 | Y164: 11.2931502 | Z164: 16.24365028 | AA164: 27.53680048
R165: 145 | S165: 1e-08 | T165: 1e-08 | U165: 0.00694175153 | V165: 0.04380308711 | W165: 351434.8866 | X165: 2329002.6 | Y165: 11.2931502 | Z165: 16.24365028 | AA165: 27.53680048
R166: 146 | S166: 1e-08 | T166: 1e-08 | U166: 0.00694175153 | V166: 0.04663120808 | W166: 349410.2343 | X166: 2428908.42 | Y166: 11.22808921 | Z166: 16.94044434 | AA166: 28.16853355
R167: 147 | S167: 1e-08 | T167: 1e-08 | U167: 0.00694175153 | V167: 0.04380308711 | W167: 351434.8866 | X167: 2329002.6 | Y167: 11.2931502 | Z167: 16.24365028 | AA167: 27.53680048
R168: 148 | S168: 1e-08 | T168: 1e-08 | U168: 0.00694175153 | V168: 0.04380308711 | W168: 351434.8866 | X168: 2329002.6 | Y168: 11.2931502 | Z168: 16.24365028 | AA168: 27.53680048
R169: 149 | S169: 1e-08 | T169: 1e-08 | U169: 0.00694175153 | V169: 0.04380308711 | W169: 351434.8866 | X169: 2329002.6 | Y169: 11.2931502 | Z169: 16.24365028 | AA169: 27.53680048
R170: 150 | S170: 1e-08 | T170: 1e-08 | U170: 0.00694175153 | V170: 0.04380308711 | W170: 351434.8866 | X170: 2329002.6 | Y170: 11.2931502 | Z170: 16.24365028 | AA170: 27.53680048
R171: 151 | S171: 1e-08 | T171: 1e-08 | U171: 0.00694175153 | V171: 0.04380308711 | W171: 351434.8866 | X171: 2329002.6 | Y171: 11.2931502 | Z171: 16.24365028 | AA171: 27.53680048
R172: 152 | S172: 1e-08 | T172: 1e-08 | U172: 0.00694175153 | V172: 0.04380308711 | W172: 351434.8866 | X172: 2329002.6 | Y172: 11.2931502 | Z172: 16.24365028 | AA172: 27.53680048
R173: 153 | S173: 1e-08 | T173: 1e-08 | U173: 0.00694175153 | V173: 0.04380308711 | W173: 351434.8866 | X173: 2329002.6 | Y173: 11.2931502 | Z173: 16.24365028 | AA173: 27.53680048
R174: 154 | S174: 1e-08 | T174: 1e-08 | U174: 0.00694175153 | V174: 0.04380308711 | W174: 351434.8866 | X174: 2329002.6 | Y174: 11.2931502 | Z174: 16.24365028 | AA174: 27.53680048
R175: 155 | S175: 1e-08 | T175: 1e-08 | U175: 0.00694175153 | V175: 0.04380308711 | W175: 351434.8866 | X175: 2329002.6 | Y175: 11.2931502 | Z175: 16.24365028 | AA175: 27.53680048
R176: 156 | S176: 1e-08 | T176: 1e-08 | U176: 0.00694175153 | V176: 0.04380308711 | W176: 351434.8866 | X176: 2329002.6 | Y176: 11.2931502 | Z176: 16.24365028 | AA176: 27.53680048
R177: 157 | S177: 1e-08 | T177: 1e-08 | U177: 0.00694175153 | V177: 0.04380308711 | W177: 351434.8866 | X177: 2329002.6 | Y177: 11.2931502 | Z177: 16.24365028 | AA177: 27.53680048
R178: 158 | S178: 1e-08 | T178: 1e-08 | U178: 0.00694175153 | V178: 0.04380308711 | W178: 351434.8866 | X178: 2329002.6 | Y178: 11.2931502 | Z178: 16.24365028 | AA178: 27.53680048
R179: 159 | S179: 1e-08 | T179: 1e-08 | U179: 0.00694175153 | V179: 0.04380308711 | W179: 351434.8866 | X179: 2329002.6 | Y179: 11.2931502 | Z179: 16.24365028 | AA179: 27.53680048
R180: 160 | S180: 1e-08 | T180: 1e-08 | U180: 0.00694175153 | V180: 0.04380308711 | W180: 351434.8866 | X180: 2329002.6 | Y180: 11.2931502 | Z180: 16.24365028 | AA180: 27.53680048
R181: 161 | S181: 1e-08 | T181: 1e-08 | U181: 0.00694175153 | V181: 0.04380308711 | W181: 351434.8866 | X181: 2329002.6 | Y181: 11.2931502 | Z181: 16.24365028 | AA181: 27.53680048
R182: 162 | S182: 1e-08 | T182: 1e-08 | U182: 0.00694175153 | V182: 0.04380308711 | W182: 351434.8866 | X182: 2329002.6 | Y182: 11.2931502 | Z182: 16.24365028 | AA182: 27.53680048
R183: 163 | S183: 1e-08 | T183: 1e-08 | U183: 0.00694175153 | V183: 0.04380308711 | W183: 351434.8866 | X183: 2329002.6 | Y183: 11.2931502 | Z183: 16.24365028 | AA183: 27.53680048
R184: 164 | S184: 1e-08 | T184: 1e-08 | U184: 0.00694175153 | V184: 0.04380308711 | W184: 351434.8866 | X184: 2329002.6 | Y184: 11.2931502 | Z184: 16.24365028 | AA184: 27.53680048
R185: 165 | S185: 1e-08 | T185: 1e-08 | U185: 0.00694175153 | V185: 0.04380308711 | W185: 351434.8866 | X185: 2329002.6 | Y185: 11.2931502 | Z185: 16.24365028 | AA185: 27.53680048
R186: 166 | S186: 1e-08 | T186: 1e-08 | U186: 0.00694175153 | V186: 0.04380308711 | W186: 351434.8866 | X186: 2329002.6 | Y186: 11.2931502 | Z186: 16.24365028 | AA186: 27.53680048
R187: 167 | S187: 1e-08 | T187: 1e-08 | U187: 0.00694175153 | V187: 0.04380308711 | W187: 351434.8866 | X187: 2329002.6 | Y187: 11.2931502 | Z187: 16.24365028 | AA187: 27.53680048
R188: 168 | S188: 1e-08 | T188: 1e-08 | U188: 0.00694175153 | V188: 0.04380308711 | W188: 351434.8866 | X188: 2329002.6 | Y188: 11.2931502 | Z188: 16.24365028 | AA188: 27.53680048
R189: 169 | S189: 1e-08 | T189: 1e-08 | U189: 0.00694175153 | V189: 0.04380308711 | W189: 351434.8866 | X189: 2329002.6 | Y189: 11.2931502 | Z189: 16.24365028 | AA189: 27.53680048
R190: 170 | S190: 1e-08 | T190: 1e-08 | U190: 0.00694175153 | V190: 0.04380308711 | W190: 351434.8866 | X190: 2329002.6 | Y190: 11.2931502 | Z190: 16.24365028 | AA190: 27.53680048
R191: 171 | S191: 1e-08 | T191: 1e-08 | U191: 0.00694175153 | V191: 0.04380308711 | W191: 351434.8866 | X191: 2329002.6 | Y191: 11.2931502 | Z191: 16.24365028 | AA191: 27.53680048
R192: 172 | S192: 1e-08 | T192: 1e-08 | U192: 0.00694175153 | V192: 0.04380308711 | W192: 351434.8866 | X192: 2329002.6 | Y192: 11.2931502 | Z192: 16.24365028 | AA192: 27.53680048
R193: 173 | S193: 1e-08 | T193: 1e-08 | U193: 0.00694175153 | V193: 0.04380308711 | W193: 351434.8866 | X193: 2329002.6 | Y193: 11.2931502 | Z193: 16.24365028 | AA193: 27.53680048
R194: 174 | S194: 1e-08 | T194: 1e-08 | U194: 0.00694175153 | V194: 0.04380308711 | W194: 351434.8866 | X194: 2329002.6 | Y194: 11.2931502 | Z194: 16.24365028 | AA194: 27.53680048
R195: 175 | S195: 1e-08 | T195: 1e-08 | U195: 0.00694175153 | V195: 0.04380308711 | W195: 351434.8866 | X195: 2329002.6 | Y195: 11.2931502 | Z195: 16.24365028 | AA195: 27.53680048
R196: 176 | S196: 1e-08 | T196: 1e-08 | U196: 0.00694175153 | V196: 0.04380308711 | W196: 351434.8866 | X196: 2329002.6 | Y196: 11.2931502 | Z196: 16.24365028 | AA196: 27.53680048
R197: 177 | S197: 1e-08 | T197: 1e-08 | U197: 0.00694175153 | V197: 0.04380308711 | W197: 351434.8866 | X197: 2329002.6 | Y197: 11.2931502 | Z197: 16.24365028 | AA197: 27.53680048
R198: 178 | S198: 1e-08 | T198: 1e-08 | U198: 0.00694175153 | V198: 0.04380308711 | W198: 351434.8866 | X198: 2329002.6 | Y198: 11.2931502 | Z198: 16.24365028 | AA198: 27.53680048
R199: 179 | S199: 1e-08 | T199: 1e-08 | U199: 0.00694175153 | V199: 0.04380308711 | W199: 351434.8866 | X199: 2329002.6 | Y199: 11.2931502 | Z199: 16.24365028 | AA199: 27.53680048
R200: 180 | S200: 1e-08 | T200: 1e-08 | U200: 0.00694175153 | V200: 0.04566156069 | W200: 314440.1177 | X200: 2363612.103 | Y200: 10.1043454 | Z200: 16.48503457 | AA200: 26.58937997
R201: 181 | S201: 1e-08 | T201: 1e-08 | U201: 0.00694175153 | V201: 0.04566156069 | W201: 314440.1177 | X201: 2363612.103 | Y201: 10.1043454 | Z201: 16.48503457 | AA201: 26.58937997
R202: 182 | S202: 1e-08 | T202: 1e-08 | U202: 0.00694175153 | V202: 0.04566156069 | W202: 314440.1177 | X202: 2363612.103 | Y202: 10.1043454 | Z202: 16.48503457 | AA202: 26.58937997
R203: 183 | S203: 1e-08 | T203: 1e-08 | U203: 0.00694175153 | V203: 0.04472345709 | W203: 315760.6997 | X203: 2330914.536 | Y203: 10.14678151 | Z203: 16.25698509 | AA203: 26.4037666
... 2047 more rows

Sheet Data, model predictions, SSE
A2: Observed data, model predictions, and SSE | Q2: Results of variance estimation run
C6: Observed data | I6: Model predictions | M6: Sum squared error (SSE)
C7: Observed counts | M7: Difference between observed counts and model predctions, squared
B8: Age | C8: Data set 1 (persons in State B) | F8: Data set 2 (persons moving to State C) | I8: Predicted rates | K8: Predicted counts - calculated using denominators from observed counts data | M8: Data set 1 | N8: Data set 2 | Q8: Predicted rates from variance estimation run
C9: Occurrences | D9: Denominators | E9: Rate | F9: Occurrences | G9: Denominators | H9: Rate | I9: Data set 1 | J9: Data set 2 | K9: Data set 1 | L9: Data set 2 | P9: =EstimateVariancesNumber -> 0 | Q9: Current data set | R9: Data set 1 | S9: Data set 2
B10: 27 | F10: 80 | G10: 16695255 | H10: =F10/G10 -> 4.791780659e-06 | J10: =VLOOKUP($B10,Model!$F$22:$J$90,5) -> 4.567977991e-06 | L10: =J10*G10 -> 76.26355739 | N10: =(F10-L10)^2 -> 13.96100338 | Q10: =OFFSET(I10,0,P$9-1) -> 4.791780659e-06 | R10: 0 | S10: 3.950308259e-06
B11: =B10+5 -> 32 | F11: 75 | G11: 3018385 | H11: =F11/G11 -> 2.484772486e-05 | J11: =VLOOKUP($B11,Model!$F$22:$J$90,5) -> 3.033333568e-05 | L11: 91.55768541 | N11: 274.1569463 | Q11: 2.484772486e-05 | R11: 0 | S11: 2.635083582e-05
B12: 37 | F12: 176 | G12: 3443096 | H12: 5.111678559e-05 | J12: =VLOOKUP($B12,Model!$F$22:$J$90,5) -> 9.430969618e-05 | L12: 324.7173377 | N12: 22116.84653 | Q12: 5.111678559e-05 | R12: 0 | S12: 8.254901777e-05
B13: 42 | F13: 300 | G13: 3455540 | H13: 8.681711107e-05 | J13: =VLOOKUP($B13,Model!$F$22:$J$90,5) -> 0.0002104842028 | L13: 727.336582 | N13: 182616.5543 | Q13: 8.681711107e-05 | R13: 0 | S13: 0.0001861816436
B14: 47 | F14: 679 | G14: 3084201 | H14: 0.0002201542636 | J14: =VLOOKUP($B14,Model!$F$22:$J$90,5) -> 0.0003887302279 | L14: 1198.922158 | N14: 270319.0499 | Q14: 0.0002201542636 | R14: 0 | S14: 0.0003484620828
B15: 52 | F15: 1132 | G15: 2819653 | H15: 0.0004014678402 | J15: =VLOOKUP($B15,Model!$F$22:$J$90,5) -> 0.0006341161924 | L15: 1787.987624 | N15: 430319.7631 | Q15: 0.0004014678402 | R15: 0 | S15: 0.0005775962853
B16: 57 | C16: 8638 | D16: 178729 | E16: =C16/D16 -> 0.04833015347 | F16: 2074 | G16: 3018862 | H16: 0.0006870138483 | I16: =VLOOKUP($B16,Model!$F$22:$J$90,3) -> 0.04750375316 | J16: =VLOOKUP($B16,Model!$F$22:$J$90,5) -> 0.0009466641224 | K16: =I16*D16 -> 8490.298299 | L16: 2857.848346 | M16: =(K16-C16)^2 -> 21815.79244 | N16: 614418.2291 | Q16: 0.0006870138483 | R16: 0.05027812733 | S16: 0.0008783581338
B17: 62 | C17: 15916 | D17: 271477 | E17: =C17/D17 -> 0.05862743437 | F17: 2608 | G17: 2357070 | H17: 0.001106458442 | I17: =VLOOKUP($B17,Model!$F$22:$J$90,3) -> 0.05775023957 | J17: =VLOOKUP($B17,Model!$F$22:$J$90,5) -> 0.001321558673 | K17: =I17*D17 -> 15677.86179 | L17: 3115.006302 | M17: =(K17-C17)^2 -> 56709.80856 | N17: 257055.3902 | Q17: 0.001106458442 | R17: 0.05810608364 | S17: 0.001251845113
B18: 67 | C18: 14726 | D18: 222544 | E18: =C18/D18 -> 0.06617118413 | F18: 3525 | G18: 2040601 | H18: 0.001727432261 | I18: =VLOOKUP($B18,Model!$F$22:$J$90,3) -> 0.06769455995 | J18: =VLOOKUP($B18,Model!$F$22:$J$90,5) -> 0.001749757143 | K18: =I18*D18 -> 15065.01815 | L18: 3570.556177 | M18: =(K18-C18)^2 -> 114933.3057 | N18: 2075.365229 | Q18: 0.001727432261 | R18: 0.06616986264 | S18: 0.001695424507
B19: 72 | C19: 7702 | D19: 102600 | E19: =C19/D19 -> 0.07506822612 | F19: 4324 | G19: 1769377 | H19: 0.002443798015 | I19: =VLOOKUP($B19,Model!$F$22:$J$90,3) -> 0.07699572809 | J19: =VLOOKUP($B19,Model!$F$22:$J$90,5) -> 0.002218910257 | K19: =I19*D19 -> 7899.761702 | L19: 3926.088774 | M19: =(K19-C19)^2 -> 39109.69061 | N19: 158333.344 | Q19: 0.002443798015 | R19: 0.07446878798 | S19: 0.002202869139
B20: 77 | C20: 3934 | D20: 48634 | E20: =C20/D20 -> 0.08088991241 | F20: 4694 | G20: 1467090 | H20: 0.003199531044 | I20: =VLOOKUP($B20,Model!$F$22:$J$90,3) -> 0.08537307526 | J20: =VLOOKUP($B20,Model!$F$22:$J$90,5) -> 0.002714477123 | K20: =I20*D20 -> 4152.034142 | L20: 3982.382242 | M20: =(K20-C20)^2 -> 47538.88721 | N20: 506399.834 | Q20: 0.003199531044 | R20: 0.08300355535 | S20: 0.00276467087
M21: =SUM(M10:M20) -> 280107.4845 | N21: =SUM(N10:N20) -> 2443942.494

Sheet Model
B2: Model inputs | F2: Model
F4: A very simple state transition model example with 3 states and 4 parameters.
B6: Parameter Number | C6: Parameter Name | D6: Parameter value | F6: State transition matrices
B7: 1 | C7: Trans AtoB age 20 | D7: =TRANSPOSE('MH algorithm'!H32:L32) -> 1e-08
B8: 2 | C8: Trans BtoC age 20 | D8: 1e-08 | F8: age 20 | G8: State A | H8: State B | I8: State C
B9: 3 | C9: Trans AtoB age 100 | D9: 0.007044474493 | F9: State A | G9: =1-H9 -> 0.99999999 | H9: =Parameter1 -> 1e-08 | I9: 0
B10: 4 | C10: Trans BtoC age 100 | D10: 0.04628430196 | F10: State B | G10: 0 | H10: =1-I10 -> 0.99999999 | I10: =Parameter2 -> 1e-08
F11: State C | G11: 0 | H11: 0 | I11: 1
B12: The transition probabilities for age 20-100 are assumed to vary linearly (i.e. the rate for age 60 will be midway between the rates for ages 20 and 100)
F13: age 100 | G13: State A | H13: State B | I13: State C
F14: State A | G14: =1-H14 -> 0.9929555255 | H14: =Parameter3 -> 0.007044474493 | I14: 0
B15: The transition matrix for age i is hence: ((matrix100-matrix20)*i/80)-(1/4)*matrix100+(5/4)*matrix20 | F15: State B | G15: 0 | H15: =1-I15 -> 0.953715698 | I15: =Parameter4 -> 0.04628430196
F16: State C | G16: 0 | H16: 0 | I16: 1
F19: Model Predictions
F20: Model starts at age 20 with initial state distribution (1,0,0) i.e. all persons in State A.
F22: Time | G22: State A | H22: State B | I22: State C | J22: Moving to state C
F23: 20 | G23: 1 | H23: 0 | I23: 0
F24: 21 | G24: =MMULT(G23:I23,((matrix100-matrix20)*F23/80)-(1/4)*matrix100+(5/4)*matrix20) -> 0.99999999 | H24: 1e-08 | I24: 0 | J24: =I24-I23 -> 0
F25: 22 | G25: =MMULT(G24:I24,((matrix100-matrix20)*F24/80)-(1/4)*matrix100+(5/4)*matrix20) -> 0.9999119242 | H25: 8.807579949e-05 | I25: 5.785636495e-12 | J25: 5.785636495e-12
F26: 23 | G26: =MMULT(G25:I25,((matrix100-matrix20)*F25/80)-(1/4)*matrix100+(5/4)*matrix20) -> 0.9997358181 | H26: 0.0002640799857 | I26: 1.019198169e-07 | J26: 1.019140312e-07
F27: 24 | G27: =MMULT(G26:I26,((matrix100-matrix20)*F26/80)-(1/4)*matrix100+(5/4)*matrix20) -> 0.9994717105 | H27: 0.0005277292573 | I27: 5.602757762e-07 | J27: 4.583559593e-07
F28: 25 | G28: =MMULT(G27:I27,((matrix100-matrix20)*F27/80)-(1/4)*matrix100+(5/4)*matrix20) -> 0.9991196633 | H28: 0.0008785551168 | I28: 1.781559805e-06 | J28: 1.221284028e-06
F29: 26 | G29: =MMULT(G28:I28,((matrix100-matrix20)*F28/80)-(1/4)*matrix100+(5/4)*matrix20) -> 0.9986797619 | H29: 0.00131591508 | I29: 4.323024936e-06 | J29: 2.541465131e-06
F30: 27 | G30: =MMULT(G29:I29,((matrix100-matrix20)*F29/80)-(1/4)*matrix100+(5/4)*matrix20) -> 0.9981521146 | H30: 0.001838994398 | I30: 8.891002927e-06 | J30: 4.567977991e-06
F31: 28 | G31: =MMULT(G30:I30,((matrix100-matrix20)*F30/80)-(1/4)*matrix100+(5/4)*matrix20) -> 0.997536853 | H31: 0.002446808286 | I31: 1.633871976e-05 | J31: 7.447716832e-06
F32: 29 | G32: =MMULT(G31:I31,((matrix100-matrix20)*F31/80)-(1/4)*matrix100+(5/4)*matrix20) -> 0.9968341317 | H32: 0.003138204652 | I32: 2.766362314e-05 | J32: 1.132490338e-05
F33: 30 | G33: =MMULT(G32:I32,((matrix100-matrix20)*F32/80)-(1/4)*matrix100+(5/4)*matrix20) -> 0.9960441285 | H33: 0.003911867309 | I33: 4.400423231e-05 | J33: 1.634060917e-05
F34: 31 | G34: =MMULT(G33:I33,((matrix100-matrix20)*F33/80)-(1/4)*matrix100+(5/4)*matrix20) -> 0.9951670438 | H34: 0.004766319667 | I34: 6.663652251e-05 | J34: 2.26322902e-05
F35: 32 | G35: =MMULT(G34:I34,((matrix100-matrix20)*F34/80)-(1/4)*matrix100+(5/4)*matrix20) -> 0.9942031013 | H35: 0.005699928882 | I35: 9.696985819e-05 | J35: 3.033333568e-05
F36: 33 | G36: =MMULT(G35:I35,((matrix100-matrix20)*F35/80)-(1/4)*matrix100+(5/4)*matrix20) -> 0.9931525471 | H36: 0.006710910458 | I36: 0.0001365424911 | J36: 3.957263288e-05
F37: 34 | G37: =MMULT(G36:I36,((matrix100-matrix20)*F36/80)-(1/4)*matrix100+(5/4)*matrix20) -> 0.9920156501 | H37: 0.007797333266 | I37: 0.0001870166408 | J37: 5.047414969e-05
F38: 35 | G38: =MMULT(G37:I37,((matrix100-matrix20)*F37/80)-(1/4)*matrix100+(5/4)*matrix20) -> 0.9907927018 | H38: 0.008957124978 | I38: 0.0002501731774 | J38: 6.315653662e-05
F39: 36 | G39: =MMULT(G38:I38,((matrix100-matrix20)*F38/80)-(1/4)*matrix100+(5/4)*matrix20) -> 0.9894840162 | H39: 0.01018807789 | I39: 0.0003279059271 | J39: 7.773274975e-05
F40: 37 | G40: =MMULT(G39:I39,((matrix100-matrix20)*F39/80)-(1/4)*matrix100+(5/4)*matrix20) -> 0.9880899293 | H40: 0.01148785509 | I40: 0.0004222156233 | J40: 9.430969618e-05
F41: 38 | G41: =MMULT(G40:I40,((matrix100-matrix20)*F40/80)-(1/4)*matrix100+(5/4)*matrix20) -> 0.9866107995 | H41: 0.01285399701 | I41: 0.0005352035265 | J41: 0.0001129879032
F42: 39 | G42: =MMULT(G41:I41,((matrix100-matrix20)*F41/80)-(1/4)*matrix100+(5/4)*matrix20) -> 0.985047007 | H42: 0.01428392823 | I42: 0.0006690647389 | J42: 0.0001338612124
F43: 40 | G43: =MMULT(G42:I42,((matrix100-matrix20)*F42/80)-(1/4)*matrix100+(5/4)*matrix20) -> 0.9833989541 | H43: 0.01577496464 | I43: 0.000826081239 | J43: 0.0001570165002
F44: 41 | G44: =MMULT(G43:I43,((matrix100-matrix20)*F43/80)-(1/4)*matrix100+(5/4)*matrix20) -> 0.9816670645 | H44: 0.0173243208 | I44: 0.001008614664 | J44: 0.000182533425
F45: 42 | G45: =MMULT(G44:I44,((matrix100-matrix20)*F44/80)-(1/4)*matrix100+(5/4)*matrix20) -> 0.9798517835 | H45: 0.01892911759 | I45: 0.001219098867 | J45: 0.0002104842028
F46: 43 | G46: =MMULT(G45:I45,((matrix100-matrix20)*F45/80)-(1/4)*matrix100+(5/4)*matrix20) -> 0.9779535777 | H46: 0.02058639003 | I46: 0.001460032277 | J46: 0.0002409334107
F47: 44 | G47: =MMULT(G46:I46,((matrix100-matrix20)*F46/80)-(1/4)*matrix100+(5/4)*matrix20) -> 0.9759729346 | H47: 0.02229309528 | I47: 0.001733970098 | J47: 0.0002739378208
F48: 45 | G48: =MMULT(G47:I47,((matrix100-matrix20)*F47/80)-(1/4)*matrix100+(5/4)*matrix20) -> 0.9739103629 | H48: 0.02404612078 | I48: 0.00204351636 | J48: 0.0003095462621
F49: 46 | G49: =MMULT(G48:I48,((matrix100-matrix20)*F48/80)-(1/4)*matrix100+(5/4)*matrix20) -> 0.9717663916 | H49: 0.02584229256 | I49: 0.002391315874 | J49: 0.0003477995138
F50: 47 | G50: =MMULT(G49:I49,((matrix100-matrix20)*F49/80)-(1/4)*matrix100+(5/4)*matrix20) -> 0.9695415704 | H50: 0.02767838355 | I50: 0.002780046102 | J50: 0.0003887302279
F51: 48 | G51: =MMULT(G50:I50,((matrix100-matrix20)*F50/80)-(1/4)*matrix100+(5/4)*matrix20) -> 0.967236469 | H51: 0.029551122 | I51: 0.003212408984 | J51: 0.0004323628817
F52: 49 | G52: =MMULT(G51:I51,((matrix100-matrix20)*F51/80)-(1/4)*matrix100+(5/4)*matrix20) -> 0.9648516773 | H52: 0.03145719995 | I52: 0.003691122745 | J52: 0.000478713761
F53: 50 | G53: =MMULT(G52:I52,((matrix100-matrix20)*F52/80)-(1/4)*matrix100+(5/4)*matrix20) -> 0.9623878047 | H53: 0.0333932816 | I53: 0.004218913717 | J53: 0.0005277909718
F54: 51 | G54: =MMULT(G53:I53,((matrix100-matrix20)*F53/80)-(1/4)*matrix100+(5/4)*matrix20) -> 0.95984548 | H54: 0.03535601177 | I54: 0.004798508199 | J54: 0.0005795944822
F55: 52 | G55: =MMULT(G54:I54,((matrix100-matrix20)*F54/80)-(1/4)*matrix100+(5/4)*matrix20) -> 0.9572253514 | H55: 0.03734202416 | I55: 0.005432624391 | J55: 0.0006341161924
F56: 53 | G56: =MMULT(G55:I55,((matrix100-matrix20)*F55/80)-(1/4)*matrix100+(5/4)*matrix20) -> 0.9545280859 | H56: 0.0393479497 | I56: 0.006123964424 | J56: =I56-I55 -> 0.000691340033
F57: 54 | G57: =MMULT(G56:I56,((matrix100-matrix20)*F56/80)-(1/4)*matrix100+(5/4)*matrix20) -> 0.9517543689 | H57: 0.04137042458 | I57: 0.006875206514 | J57: 0.0007512420902
F58: 55 | G58: =MMULT(G57:I57,((matrix100-matrix20)*F57/80)-(1/4)*matrix100+(5/4)*matrix20) -> 0.9489049044 | H58: 0.04340609828 | I58: 0.007688997272 | J58: 0.0008137907579
F59: 56 | G59: =MMULT(G58:I58,((matrix100-matrix20)*F58/80)-(1/4)*matrix100+(5/4)*matrix20) -> 0.9459804144 | H59: 0.04545164138 | I59: 0.008567944186 | J59: 0.0008789469141
F60: 57 | G60: =MMULT(G59:I59,((matrix100-matrix20)*F59/80)-(1/4)*matrix100+(5/4)*matrix20) -> 0.9429816385 | H60: 0.04750375316 | I60: 0.009514608309 | J60: 0.0009466641224
F61: 58 | G61: =MMULT(G60:I60,((matrix100-matrix20)*F60/80)-(1/4)*matrix100+(5/4)*matrix20) -> 0.9399093338 | H61: 0.04955916905 | I61: 0.01053149716 | J61: 0.001016888856
F62: 59 | G62: =MMULT(G61:I61,((matrix100-matrix20)*F61/80)-(1/4)*matrix100+(5/4)*matrix20) -> 0.9367642744 | H62: 0.05161466772 | I62: 0.01162105791 | J62: 0.001089560744
F63: 60 | G63: =MMULT(G62:I62,((matrix100-matrix20)*F62/80)-(1/4)*matrix100+(5/4)*matrix20) -> 0.9335472512 | H63: 0.05366707805 | I63: 0.01278567075 | J63: 0.001164612837
F64: 61 | G64: =MMULT(G63:I63,((matrix100-matrix20)*F63/80)-(1/4)*matrix100+(5/4)*matrix20) -> 0.9302590716 | H64: 0.05571328573 | I64: 0.01402764264 | J64: 0.001241971891
F65: 62 | G65: =MMULT(G64:I64,((matrix100-matrix20)*F64/80)-(1/4)*matrix100+(5/4)*matrix20) -> 0.9269005591 | H65: 0.05775023957 | I65: 0.01534920131 | J65: 0.001321558673
F66: 63 | G66: =MMULT(G65:I65,((matrix100-matrix20)*F65/80)-(1/4)*matrix100+(5/4)*matrix20) -> 0.9234725529 | H66: 0.05977495755 | I66: 0.01675248959 | J66: 0.001403288276
F67: 64 | G67: =MMULT(G66:I66,((matrix100-matrix20)*F66/80)-(1/4)*matrix100+(5/4)*matrix20) -> 0.9199759075 | H67: 0.0617845325 | I67: 0.01823956004 | J67: 0.001487070451
F68: 65 | G68: =MMULT(G67:I67,((matrix100-matrix20)*F67/80)-(1/4)*matrix100+(5/4)*matrix20) -> 0.9164114926 | H68: 0.06377613743 | I68: 0.01981236999 | J68: 0.001572809955
F69: 66 | G69: =MMULT(G68:I68,((matrix100-matrix20)*F68/80)-(1/4)*matrix100+(5/4)*matrix20) -> 0.9127801925 | H69: 0.06574703056 | I69: 0.0214727769 | J69: 0.001660406906
F70: 67 | G70: =MMULT(G69:I69,((matrix100-matrix20)*F69/80)-(1/4)*matrix100+(5/4)*matrix20) -> 0.909082906 | H70: 0.06769455995 | I70: 0.02322253404 | J70: 0.001749757143
F71: 68 | G71: =MMULT(G70:I70,((matrix100-matrix20)*F70/80)-(1/4)*matrix100+(5/4)*matrix20) -> 0.9053205456 | H71: 0.06961616776 | I71: 0.02506328665 | J71: 0.001840752608
F72: 69 | G72: =MMULT(G71:I71,((matrix100-matrix20)*F71/80)-(1/4)*matrix100+(5/4)*matrix20) -> 0.9014940375 | H72: 0.07150939416 | I72: 0.02699656837 | J72: 0.001933281716
F73: 70 | G73: =MMULT(G72:I72,((matrix100-matrix20)*F72/80)-(1/4)*matrix100+(5/4)*matrix20) -> 0.897604321 | H73: 0.07337188085 | I73: 0.02902379811 | J73: 0.002027229742
F74: 71 | G74: =MMULT(G73:I73,((matrix100-matrix20)*F73/80)-(1/4)*matrix100+(5/4)*matrix20) -> 0.8936523485 | H74: 0.07520137423 | I74: 0.03114627731 | J74: 0.002122479206
F75: 72 | G75: =MMULT(G74:I74,((matrix100-matrix20)*F74/80)-(1/4)*matrix100+(5/4)*matrix20) -> 0.8896390843 | H75: 0.07699572809 | I75: 0.03336518757 | J75: 0.002218910257
F76: 73 | G76: =MMULT(G75:I75,((matrix100-matrix20)*F75/80)-(1/4)*matrix100+(5/4)*matrix20) -> 0.8855655053 | H76: 0.07875290603 | I76: 0.03568158863 | J76: 0.002316401063
F77: 74 | G77: =MMULT(G76:I76,((matrix100-matrix20)*F76/80)-(1/4)*matrix100+(5/4)*matrix20) -> 0.8814325997 | H77: 0.08047098347 | I77: 0.03809641682 | J77: 0.002414828191
F78: 75 | G78: =MMULT(G77:I77,((matrix100-matrix20)*F77/80)-(1/4)*matrix100+(5/4)*matrix20) -> 0.8772413669 | H78: 0.08214814924 | I78: 0.04061048381 | J78: 0.002514066988
F79: 76 | G79: =MMULT(G78:I78,((matrix100-matrix20)*F78/80)-(1/4)*matrix100+(5/4)*matrix20) -> 0.8729928174 | H79: 0.08378270682 | I79: 0.04322447577 | J79: 0.002613991956
F80: 77 | G80: =MMULT(G79:I79,((matrix100-matrix20)*F79/80)-(1/4)*matrix100+(5/4)*matrix20) -> 0.8686879718 | H80: 0.08537307526 | I80: 0.04593895289 | J80: 0.002714477123
F81: 78 | G81: =MMULT(G80:I80,((matrix100-matrix20)*F80/80)-(1/4)*matrix100+(5/4)*matrix20) -> 0.864327861 | H81: 0.08691778967 | I81: 0.04875434929 | J81: 0.002815396397
F82: 79 | G82: =MMULT(G81:I81,((matrix100-matrix20)*F81/80)-(1/4)*matrix100+(5/4)*matrix20) -> 0.8599135254 | H82: 0.08841550141 | I82: 0.05167097321 | J82: 0.002916623926
F83: 80 | G83: =MMULT(G82:I82,((matrix100-matrix20)*F82/80)-(1/4)*matrix100+(5/4)*matrix20) -> 0.8554460144 | H83: 0.08986497792 | I83: 0.05468900765 | J83: 0.003018034434
F84: 81 | G84: =MMULT(G83:I83,((matrix100-matrix20)*F83/80)-(1/4)*matrix100+(5/4)*matrix20) -> 0.8509263866 | H84: 0.09126510223 | I84: 0.0578085112 | J84: 0.003119503555
F85: 82 | G85: =MMULT(G84:I84,((matrix100-matrix20)*F84/80)-(1/4)*matrix100+(5/4)*matrix20) -> 0.8463557085 | H85: 0.09261487213 | I85: 0.06102941935 | J85: 0.003220908149
F86: 83 | G86: =MMULT(G85:I85,((matrix100-matrix20)*F85/80)-(1/4)*matrix100+(5/4)*matrix20) -> 0.8417350549 | H86: 0.09391339911 | I86: 0.06435154596 | J86: 0.003322126607
F87: 84 | G87: =MMULT(G86:I86,((matrix100-matrix20)*F86/80)-(1/4)*matrix100+(5/4)*matrix20) -> 0.837065508 | H87: 0.09515990689 | I87: 0.0677745851 | J87: 0.003423039146
F88: 85 | G88: =MMULT(G87:I87,((matrix100-matrix20)*F87/80)-(1/4)*matrix100+(5/4)*matrix20) -> 0.832348157 | H88: 0.09635372978 | I88: 0.07129811319 | J88: =I88-I87 -> 0.003523528082
F89: 86 | G89: =MMULT(G88:I88,((matrix100-matrix20)*F88/80)-(1/4)*matrix100+(5/4)*matrix20) -> 0.827584098 | H89: 0.09749431072 | I89: 0.07492159128 | J89: =I89-I88 -> 0.003623478094
F90: 87 | G90: =MMULT(G89:I89,((matrix100-matrix20)*F89/80)-(1/4)*matrix100+(5/4)*matrix20) -> 0.8227744331 | H90: 0.09858119914 | I90: 0.07864436775 | J90: =I90-I89 -> 0.003722776467
F91: 88 | G91: =MMULT(G90:I90,((matrix100-matrix20)*F90/80)-(1/4)*matrix100+(5/4)*matrix20) -> 0.8179202705 | H91: 0.09961404846 | I91: 0.08246568107 | J91: =I91-I90 -> 0.003821313326
F92: 89 | G92: =MMULT(G91:I91,((matrix100-matrix20)*F91/80)-(1/4)*matrix100+(5/4)*matrix20) -> 0.8130227235 | H92: 0.1005926136 | I92: 0.08638466292 | J92: 0.003918981843
F93: 90 | G93: =MMULT(G92:I92,((matrix100-matrix20)*F92/80)-(1/4)*matrix100+(5/4)*matrix20) -> 0.8080829108 | H93: 0.1015167479 | I93: 0.09040034136 | J93: 0.00401567844
F94: 91 | G94: =MMULT(G93:I93,((matrix100-matrix20)*F93/80)-(1/4)*matrix100+(5/4)*matrix20) -> 0.8031019552 | H94: 0.1023864004 | I94: 0.09451164432 | J94: 0.004111302963
F95: 92 | G95: =MMULT(G94:I94,((matrix100-matrix20)*F94/80)-(1/4)*matrix100+(5/4)*matrix20) -> 0.7980809841 | H95: 0.1032016127 | I95: 0.09871740316 | J95: 0.004205758844
F96: 93 | G96: =MMULT(G95:I95,((matrix100-matrix20)*F95/80)-(1/4)*matrix100+(5/4)*matrix20) -> 0.7930211283 | H96: 0.1039625153 | I96: 0.1030163564 | J96: 0.004298953249
F97: 94 | G97: =MMULT(G96:I96,((matrix100-matrix20)*F96/80)-(1/4)*matrix100+(5/4)*matrix20) -> 0.787923522 | H97: 0.1046693244 | I97: 0.1074071536 | J97: 0.004390797202
F98: 95 | G98: =MMULT(G97:I97,((matrix100-matrix20)*F97/80)-(1/4)*matrix100+(5/4)*matrix20) -> 0.7827893023 | H98: 0.1053223384 | I98: 0.1118883593 | J98: 0.004481205699
F99: 96 | G99: =MMULT(G98:I98,((matrix100-matrix20)*F98/80)-(1/4)*matrix100+(5/4)*matrix20) -> 0.7776196087 | H99: 0.1059219342 | I99: 0.1164584571 | J99: 0.004570097798
F100: 97 | G100: =MMULT(G99:I99,((matrix100-matrix20)*F99/80)-(1/4)*matrix100+(5/4)*matrix20) -> 0.7724155829 | H100: 0.1064685633 | I100: 0.1211158538 | J100: 0.004657396699
F101: 98 | G101: =MMULT(G100:I100,((matrix100-matrix20)*F100/80)-(1/4)*matrix100+(5/4)*matrix20) -> 0.7671783681 | H101: 0.1069627483 | I101: 0.1258588836 | J101: 0.004743029805
F102: 99 | G102: =MMULT(G101:I101,((matrix100-matrix20)*F101/80)-(1/4)*matrix100+(5/4)*matrix20) -> 0.7619091086 | H102: 0.107405079 | I102: 0.1306858124 | J102: 0.004826928765
F103: 100 | G103: =MMULT(G102:I102,((matrix100-matrix20)*F102/80)-(1/4)*matrix100+(5/4)*matrix20) -> 0.7566089499 | H103: 0.1077962082 | I103: 0.1355948419 | J103: 0.004909029507
